fUSD/lending_fUSD_20250818
["ID","MTS","AMOUNT","RATE_DAILY","PERIOD"]
[380038656,1755497443786,-34438.16450928,0.00013404,2]
[380038658,1755497443796,-8476.12032382,0.00013405,2]
[380038660,1755497443806,-7087.47048247,0.00013406,2]
[380038662,1755497443816,-150.0,0.00013411,2]
[380038665,1755497443826,-3474.81279725,0.00013411,2]
[380038667,1755497443836,-224.83466604,0.00013412,2]
[380038669,1755497443845,-3474.81279725,0.00013413,2]
[380038671,1755497443856,-150.0,0.00013413,2]
[380038673,1755497443865,-150.0,0.00013414,2]
[380038675,1755497443875,-150.0,0.00013415,2]
[380038677,1755497443884,-34438.16450928,0.00013415,2]
[380038679,1755497443894,-8476.12032382,0.00013415,2]
[380038681,1755497443903,-150.0,0.00013417,2]
[380038683,1755497443913,-8476.12032382,0.00013419,2]
[380038685,1755497443922,-34438.16450928,0.00013422,2]
[380038687,1755497443931,-243.29874131,0.00013423,2]
[380038689,1755497443941,-155.46384979,0.00013423,2]
[380038691,1755497443950,-283.26,0.00013425,2]
[380038693,1755497443960,-151.0,0.00013427,2]
[380038695,1755497443969,-224.83466604,0.00013427,2]
[380038697,1755497443979,-142486.79266202,0.0001343,2]
[380038699,1755497443990,-4117.78026585,0.00013432,2]
[380038701,1755497444002,-150.0,0.00013432,2]
[380038703,1755497444013,-243.29874131,0.00013433,2]
[380038705,1755497444023,-224.83466604,0.00013435,2]
[380038707,1755497444033,-3474.81279725,0.00013436,2]
[380038710,1755497444043,-3474.81279725,0.00013436,2]
[380038712,1755497444052,-150.0,0.00013438,2]
[380038713,1755497444062,-500.0,0.00013439,2]
[380038716,1755497444072,-500.0,0.00013439,2]
[380038717,1755497444082,-150.0,0.00013439,2]
[380038720,1755497444093,-500.0,0.00013439,2]
[380038722,1755497444104,-150.0,0.00013439,2]
[380038724,1755497444114,-150.0,0.00013439,2]
[380038726,1755497444123,-500.0,0.00013439,2]
[380038728,1755497444133,-500.0,0.00013439,2]
[380038730,1755497444142,-500.0,0.00013439,2]
[380038731,1755497444152,-284.18670159,0.00013439,2]
[380038734,1755497444161,-500.0,0.00013439,2]
[380038736,1755497444172,-500.0,0.00013439,2]
[380038738,1755497444181,-150.0,0.00013439,2]
[380038740,1755497444190,-204.64044887,0.00013439,2]
[380038742,1755497444199,-214.33516346,0.00013439,2]
[380038744,1755497444208,-150.0,0.00013439,2]
[380038746,1755497444218,-150.0,0.00013439,2]
[380038748,1755497444227,-150.0,0.00013439,2]
[380038750,1755497444236,-1554.0,0.00013439,2]
[380038752,1755497444246,-150.0,0.00013439,2]
[380038754,1755497444255,-500.0,0.00013439,2]
[380038756,1755497444265,-500.0,0.00013439,2]
[380038758,1755497444275,-19663.33889738,0.0001344,2]
[380038760,1755497444285,-1000.0,0.0001344,2]
[380038762,1755497444294,-1000.0,0.0001344,2]
[380038764,1755497444304,-1000.0,0.0001344,2]
[380038766,1755497444313,-1000.0,0.0001344,2]
[380038768,1755497444323,-1000.0,0.0001344,2]
[380038770,1755497444332,-1000.0,0.0001344,2]
[380038772,1755497444341,-1000.0,0.0001344,2]
[380038774,1755497444351,-1000.0,0.0001344,2]
[380038776,1755497444360,-1000.0,0.0001344,2]
[380038778,1755497444370,-1000.0,0.0001344,2]
[380038780,1755497444380,-1000.0,0.0001344,2]
[380038782,1755497444393,-1000.0,0.0001344,2]
[380038784,1755497444403,-1000.0,0.0001344,2]
[380038786,1755497444412,-1000.0,0.0001344,2]
[380038788,1755497444421,-1000.0,0.0001344,2]
[380038790,1755497444431,-1000.0,0.0001344,2]
[380038792,1755497444440,-1000.0,0.0001344,2]
[380038794,1755497444450,-1000.0,0.0001344,2]
[380038796,1755497444459,-1000.0,0.0001344,2]
[380038798,1755497444469,-1000.0,0.0001344,2]
[380038800,1755497444479,-1000.0,0.0001344,2]
[380038802,1755497444488,-1000.0,0.0001344,2]
[380038804,1755497444497,-1000.0,0.0001344,2]
[380038806,1755497444507,-1000.0,0.0001344,2]
[380038807,1755497444516,-1000.0,0.0001344,2]
[380038810,1755497444525,-1000.0,0.0001344,2]
[380038812,1755497444535,-1000.0,0.0001344,2]
[380038814,1755497444545,-1000.0,0.0001344,2]
[380038816,1755497444554,-435.41908921,0.0001344,2]
[380038818,1755497444563,-20671.78890713,0.00013442,2]
[380038820,1755497444573,-142486.79266202,0.00013444,2]
[380038822,1755497444583,-469.80803754,0.00013445,2]
[380038824,1755497444593,-8476.12032382,0.00013445,2]
[380038826,1755497444603,-469.80803754,0.00013447,2]
[380038828,1755497444612,-34438.16450928,0.00013447,2]
[380038830,1755497444622,-243.29874131,0.00013449,2]
[380038832,1755497444631,-243.29874131,0.00013449,2]
[380038834,1755497444641,-150.0,0.00013449,2]
[380038836,1755497444650,-18343.36028512,0.00013452,2]
[380038838,1755497444660,-20671.78890713,0.00013454,2]
[380038840,1755497444669,-4117.78026585,0.00013457,2]
[380038842,1755497444679,-32843.48034833,0.00013457,2]
[380038844,1755497444688,-20671.78890713,0.00013458,2]
[380038846,1755497444698,-142486.79266202,0.00013459,2]
[380038848,1755497444707,-32843.48034833,0.00013461,2]
[380038850,1755497444717,-4117.78026585,0.00013461,2]
[380038852,1755497444726,-4117.78026585,0.00013462,2]
[380038854,1755497444736,-243.29874131,0.00013462,2]
[380038856,1755497444745,-469.80803754,0.00013463,2]
[380038858,1755497444755,-4117.78026585,0.00013463,2]
[380038860,1755497444764,-13055.0,0.00013463,7]
[380038862,1755497444773,-8476.12032382,0.00013463,2]
[380038864,1755497444783,-4117.78026585,0.00013464,2]
[380038866,1755497444793,-295043.477659,0.00013464,2]
[380038869,1755497444804,-151.0,0.00013464,2]
[380038871,1755497444813,-150.0,0.00013467,2]
[380038873,1755497444823,-295043.477659,0.00013468,2]
[380038875,1755497444832,-396.30584636,0.00013468,2]
[380038877,1755497444842,-142486.79266202,0.00013469,2]
[380038879,1755497444851,-243.29874131,0.00013469,2]
[380038881,1755497444861,-224.83466604,0.00013469,2]
[380038883,1755497444870,-7087.47048247,0.0001347,2]
[380038885,1755497444880,-224.83466604,0.00013472,2]
[380038887,1755497444889,-594.62395557,0.00013473,2]
[380038889,1755497444899,-396.30584636,0.00013474,2]
[380038891,1755497444908,-243.29874131,0.00013474,2]
[380038893,1755497444917,-4117.78026585,0.00013475,2]
[380038895,1755497444926,-18015.288663,0.00013476,2]
[380038896,1755497444935,-7087.47048247,0.00013477,2]
[380038897,1755497444945,-75333.48486398,0.00013477,2]
[380038898,1755497444960,-469.80803754,0.00013478,2]
[380038899,1755497444973,-18015.288663,0.00013479,2]
[380038900,1755497444983,-396.30584636,0.0001348,2]
[380038901,1755497444993,-32843.48034833,0.0001348,2]
[380038902,1755497445003,-396.30584636,0.0001348,2]
[380038903,1755497445013,-142486.79266202,0.00013482,2]
[380038904,1755497445023,-32843.48034833,0.00013482,2]
[380038905,1755497445033,-469.80803754,0.00013482,2]
[380038906,1755497445043,-151.0,0.00013483,2]
[380038908,1755497445052,-18343.36028512,0.00013483,2]
[380038910,1755497445062,-7087.47048247,0.00013484,2]
[380038912,1755497445072,-594.62395557,0.00013486,2]
[380038914,1755497445082,-18343.36028512,0.00013487,2]
[380038916,1755497445091,-18015.288663,0.00013488,2]
[380038918,1755497445101,-396.30584636,0.00013489,2]
[380038920,1755497445109,-7087.47048247,0.00013489,2]
[380038922,1755497445118,-150.0,0.0001349,2]
[380038924,1755497445127,-2090.59998477,0.0001349,2]
[380038926,1755497445136,-150.0,0.0001349,2]
[380038928,1755497445146,-582.07156395,0.0001349,2]
[380038930,1755497445156,-150.0,0.0001349,2]
[380038932,1755497445166,-5639.76575515,0.0001349,2]
[380038934,1755497445176,-150.0,0.0001349,2]
[380038936,1755497445185,-52990.54532952,0.0001349,2]
[380038938,1755497445194,-150.0,0.0001349,2]
[380038940,1755497445203,-6765.23400383,0.0001349,2]
[380038942,1755497445213,-172617.03789825,0.0001349,2]
[380038944,1755497445222,-25136.85585924,0.00013491,2]
[380038946,1755497445231,-7087.47048247,0.00013491,2]
[380038948,1755497445241,-7087.47048247,0.00013491,2]
[380038950,1755497445251,-594.62395557,0.00013491,2]
[380038952,1755497445261,-594.62395557,0.00013491,2]
[380038954,1755497445271,-5865.74683997,0.00013492,2]
[380038956,1755497445281,-8476.12032382,0.00013492,2]
[380038958,1755497445291,-19873.92200522,0.00013493,2]
[380038960,1755497445301,-32843.48034833,0.00013493,2]
[380038962,1755497445310,-295043.477659,0.00013494,2]
[380038964,1755497445320,-224.83466604,0.00013494,2]
[380038966,1755497445330,-2921.65011012,0.00013495,2]
[380038968,1755497445339,-464705.83715791,0.00013495,2]
[380038970,1755497445349,-717.50225019,0.00013495,2]
[380038972,1755497445360,-8945.04477404,0.00013495,2]
[380038974,1755497445369,-18015.288663,0.00013495,2]
[380038976,1755497445379,-5084.67868986,0.00013495,2]
[380038978,1755497445392,-142486.79266202,0.00013497,2]
[380038980,1755497445402,-34438.16450928,0.00013497,2]
[380038982,1755497445411,-250.47279,0.00013498,2]
[380038984,1755497445421,-250.47279,0.00013498,2]
[380038986,1755497445430,-151.0,0.00013498,2]
[380038988,1755497445440,-151.0,0.00013498,2]
[380038990,1755497445449,-151.0,0.00013498,2]
[380038992,1755497445460,-151.0,0.00013498,2]
[380038993,1755497445470,-151.0,0.00013498,2]
[380038994,1755497445603,-211.326327,0.00013498,2]
[380038995,1755497445613,-151.0,0.00013498,2]
[380038996,1755497445622,-211.326327,0.00013498,2]
[380038997,1755497445631,-161.574208,0.00013498,2]
[380038998,1755497445640,-161.574208,0.00013498,2]
[380038999,1755497445650,-151.0,0.00013498,2]
[380039001,1755497445659,-2002470.04741599,0.00013498,2]
[380039038,1755497446903,-150.0,0.0001288,2]
[380039039,1755497446913,-9874.20615129,0.00013498,2]
[380039040,1755497446987,-662681.39530053,0.00013498,2]
[380039041,1755497447047,-403.4742033,0.00013498,2]
[380039042,1755497447059,-380.86587188,0.00013498,2]
[380039043,1755497447071,-65187.80470741,0.00013498,2]
[380039044,1755497447080,-75333.48486398,0.00013499,2]
[380039045,1755497447089,-717.50225019,0.000135,2]
[380039046,1755497447098,-1000.0,0.000135,2]
[380039047,1755497447107,-59388.99387454,0.000135,2]
[380039048,1755497451294,-4170.54612546,0.000135,2]
[380039049,1755497451303,-94334.86813508,0.000135,2]
[380039050,1755497451318,-16707.72324022,0.000135,2]
[380039051,1755497451334,-1021.545,0.000135,2]
[380039052,1755497451491,-11296.70080468,0.000135,2]
[380039053,1755497453635,-187.17116506,0.00010898,2]
[380039054,1755497453645,-63.40266591,0.00010898,2]
[380039055,1755497453823,-140.90513076,0.00010898,2]
[380039056,1755497453832,-322.80576267,0.00010898,2]
[380039057,1755497453842,-164.89475379,0.0001178,2]
[380039058,1755497453853,-6734.54737518,0.0001178,2]
[380039059,1755497453864,-2379.42943927,0.0001178,2]
[380039060,1755497453902,-7642.25806199,0.0001178,2]
[380039061,1755497455980,-800.0,0.00010944,2]
[380039062,1755497455989,-380.19025013,0.00011227,2]
[380039063,1755497456199,-82.80974987,0.00011227,2]
[380039064,1755497456209,-269.0,0.00011227,2]
[380039065,1755497456221,-1604.44701517,0.0001178,2]
[380039066,1755497456317,-2969.4233546,0.0001178,2]
[380039067,1755497456328,-2601.03118508,0.000135,2]
[380039068,1755497458748,240.386,0.00024,120]
[380039069,1755497466071,3510.517833,0.00011,2]
[380039070,1755497467179,300.0,0.00010998,2]
[380039072,1755498231420,170.0,0.0001034,7]
[380039084,1755498483259,-250.0,0.00010131,2]
[380039086,1755498497117,11672.09742,0.00012,30]
[380039087,1755498497160,1500.0,0.00012,30]
[380039088,1755498497197,1500.0,0.00012,30]
[380039089,1755498497223,49655.64870256,0.00012,30]
[380039095,1755498514783,533.0,0.00024,120]
[380039119,1755498623480,1569.0029,0.000135,10]
[380039120,1755498623700,1569.0029,0.000135,10]
[380039121,1755498624524,1569.0029,0.000135,10]
[380039122,1755498624893,1569.0029,0.000135,10]
[380039123,1755498625174,1569.00293,0.000135,10]
[380039204,1755498633171,-150.0,9.7e-05,2]
[380039206,1755498633180,-161.11,0.00010131,2]
[380039208,1755498633190,-22.82430056,0.00010165,2]
[380039211,1755498633202,-227.17569944,0.00010165,2]
[380039213,1755498633212,-151.0,0.000102,2]
[380039215,1755498633221,-779.07,0.00010399,2]
[380039217,1755498633231,-1000.0,0.0001068,2]
[380039219,1755498633242,-170.54,0.00010711,2]
[380039221,1755498633251,-150.0,0.0001088,2]
[380039223,1755498633261,-57.59018693,0.00010899,2]
[380039226,1755498633277,-817.40981307,0.00010899,2]
[380039228,1755498633288,-182.59018693,0.00010899,2]
[380039230,1755498633299,-1017.40981307,0.00010899,2]
[380039232,1755498633309,-3729.73449145,0.000109,2]
[380039234,1755498633320,-816.56690855,0.000109,2]
[380039236,1755498633329,-1000.0,0.000109,2]
[380039238,1755498633339,-187.8998356,0.000109,2]
[380039240,1755498633348,-567.43359965,0.000109,2]
[380039242,1755498633361,-831.21400138,0.000109,2]
[380039244,1755498633370,-1227.23193133,0.000109,2]
[380039247,1755498633382,-351.44676867,0.000109,2]
[380039249,1755498633392,-221.20763295,0.000109,2]
[380039251,1755498633401,-150.0,0.00010947,2]
[380039253,1755498633410,-295.54,0.00010948,2]
[380039255,1755498633419,-6684.70599453,0.00010948,2]
[380039257,1755498633431,-544.24322174,0.00010948,2]
[380039260,1755498633452,-862.66078373,0.00010948,2]
[380039262,1755498633461,-137.05667375,0.00010948,2]
[380039264,1755498633473,-13.93332625,0.00010948,2]
[380039267,1755498633483,-2191.51,0.00010948,2]
[380039269,1755498633493,-150.99,0.00010948,2]
[380039271,1755498633503,-999.99,0.00010948,2]
[380039273,1755498633513,-5717.75714125,0.00010948,2]
[380039283,1755498633600,-4122.2533,0.00010948,2]
[380039285,1755498633612,-159.97955875,0.00010948,2]
[380039287,1755498633622,-210.65697632,0.00010948,2]
[380039304,1755498633775,-789.34302368,0.00010948,2]
[380039306,1755498633786,-150.0,0.00010959,2]
[380039308,1755498633795,-348.39,0.00010959,2]
[380039310,1755498633805,-4925.83,0.00010959,2]
[380039312,1755498633814,-500.0,0.00010973,2]
[380039314,1755498633831,-500.0,0.00010973,2]
[380039316,1755498633840,-500.0,0.00010973,2]
[380039318,1755498633855,-500.0,0.00010973,2]
[380039320,1755498633864,-500.0,0.00010973,2]
[380039322,1755498633874,-500.0,0.00010973,2]
[380039324,1755498633883,-500.0,0.00010973,2]
[380039327,1755498633893,-500.0,0.00010973,2]
[380039329,1755498633902,-500.0,0.00010973,2]
[380039330,1755498633911,-500.0,0.00010973,2]
[380039333,1755498633921,-500.0,0.00010973,2]
[380039335,1755498633930,-294.91110892,0.00010973,2]
[380039337,1755498633939,-500.0,0.00010973,2]
[380039339,1755498633948,-600.30022113,0.00010973,2]
[380039341,1755498633957,-500.0,0.00010973,2]
[380039343,1755498633967,-500.0,0.00010973,2]
[380039345,1755498633976,-41796.28991645,0.00010976,2]
[380039347,1755498633988,-2497.41896882,0.00010976,2]
[380039349,1755498634001,-322.66793177,0.00010976,2]
[380039352,1755498634015,-23268.20762737,0.00010976,2]
[380039353,1755498634024,-225.0,0.0001099,2]
[380039355,1755498634034,-1000.0,0.00010999,2]
[380039358,1755498634043,-208.551062,0.00011,2]
[380039360,1755498634053,-157.744906,0.00011,2]
[380039362,1755498634062,-161.4,0.00011,4]
[380039363,1755498634075,-250.0,0.00011,2]
[380039365,1755498634084,-250.0,0.00011,2]
[380039367,1755498634093,-250.0,0.00011,2]
[380039370,1755498634103,-250.0,0.00011,2]
[380039372,1755498634112,-250.0,0.00011,2]
[380039373,1755498634121,-250.0,0.00011,2]
[380039375,1755498634130,-250.0,0.00011,2]
[380039377,1755498634140,-250.0,0.00011,2]
[380039380,1755498634149,-250.0,0.00011,2]
[380039382,1755498634159,-250.0,0.00011,2]
[380039383,1755498634168,-250.0,0.00011,2]
[380039386,1755498634178,-250.0,0.00011,2]
[380039388,1755498634187,-250.0,0.00011,2]
[380039390,1755498634197,-250.0,0.00011,2]
[380039392,1755498634206,-250.0,0.00011,2]
[380039394,1755498634216,-250.0,0.00011,2]
[380039396,1755498634225,-250.0,0.00011,2]
[380039398,1755498634234,-250.0,0.00011,2]
[380039400,1755498634244,-250.0,0.00011,2]
[380039402,1755498634253,-250.0,0.00011,2]
[380039404,1755498634263,-250.0,0.00011,2]
[380039406,1755498634272,-250.0,0.00011,2]
[380039408,1755498634282,-250.0,0.00011,2]
[380039410,1755498634291,-250.0,0.00011,2]
[380039412,1755498634301,-250.0,0.00011,2]
[380039414,1755498634310,-250.0,0.00011,2]
[380039416,1755498634320,-250.0,0.00011,2]
[380039418,1755498634330,-250.0,0.00011,2]
[380039420,1755498634339,-250.0,0.00011,2]
[380039422,1755498634350,-250.0,0.00011,2]
[380039424,1755498634359,-250.0,0.00011,2]
[380039426,1755498634368,-250.0,0.00011,2]
[380039428,1755498634378,-250.0,0.00011,2]
[380039430,1755498634387,-250.0,0.00011,2]
[380039432,1755498634396,-250.0,0.00011,2]
[380039434,1755498634406,-250.0,0.00011,2]
[380039436,1755498634415,-398.5,0.00011,2]
[380039438,1755498634424,-112818.7974197,0.00011,2]
[380039440,1755498634436,-60584.35721284,0.00011,2]
[380039452,1755498634534,-1459.41560526,0.00011,2]
[380039455,1755498634558,-483.07287045,0.00011,2]
[380039457,1755498634569,-1537.47542561,0.00011,2]
[380039463,1755498634606,-1600.0,0.00011,2]
[380039679,1755498639676,-5595.20643368,0.00011,2]
[380039680,1755498639687,-2309.5072,0.00011,2]
[380039681,1755498639707,-260.0,0.00011,2]
[380039682,1755498639789,-272032.70727027,0.00011,2]
[380039683,1755498639798,-17858727.86175103,0.00011,2]
[380039684,1755498639809,-1377.65288869,0.00011,2]
[380039686,1755498639927,-9712.20548789,0.00011,2]
[380039702,1755498643333,-316.15479857,0.00010395,2]
[380039703,1755498643419,-34.00881064,0.00010395,2]
[380039704,1755498643428,-3799.99118936,0.00011,2]
[380039705,1755498643440,-538.69,0.00011,2]
[380039710,1755498643592,-10031.05647307,0.00011,2]
[380039711,1755498643603,-1003.41372954,0.00011,2]
[380039726,1755498646442,-172262.62624737,0.00011,2]
[380039728,1755498646481,-1071.73199661,0.00011,2]
[380039729,1755498646492,-1918.89988843,0.00011,2]
[380039730,1755498646506,-9611.17299147,0.00011,2]
[380039754,1755499040207,-176605.78368305,0.00034656,30]
[380039755,1755499040233,-10000.0,0.00034656,30]
[380039756,1755499040258,-120191.01512845,0.00034656,30]
[380039757,1755499040284,-2000.0,0.00034656,120]
[380039758,1755499040308,-105995.87463337,0.00034656,120]
[380039759,1755499040338,-903120.12030995,0.00034656,30]
[380039760,1755499040363,-19453.85077051,0.00034656,55]
[380039761,1755499040389,-500000.0,0.00034656,60]
[380039762,1755499040414,-2813.71177351,0.00034656,60]
[380039763,1755499040440,-2272.96812084,0.00034656,60]
[380039764,1755499040464,-12480.63600477,0.00034656,120]
[380039765,1755499040489,-8087.30305526,0.00034656,38]
[380039766,1755499040513,-5834.16746999,0.00034656,30]
[380039767,1755499040538,-24397.51330893,0.00034656,60]
[380039768,1755499040562,-922.93957204,0.00034656,60]
[380039769,1755499040588,-4367.7980346,0.00034656,120]
[380039770,1755499040612,-4193.83917876,0.00034656,120]
[380039771,1755499040636,-537.25268336,0.00034656,120]
[380039772,1755499040664,-921717.0153925,0.00034656,60]
[380039773,1755499040689,-24791.83987438,0.00034656,30]
[380039774,1755499040713,-936.2732778,0.00034656,120]
[380039775,1755499041143,-475.82301778,0.00034656,60]
[380039776,1755499041167,-5509.99529289,0.00034656,30]
[380039777,1755499041190,-1000.0,0.00034656,90]
[380039778,1755499041215,-151.88081315,0.00034656,60]
[380039779,1755499041252,-160.94868378,0.00034656,60]
[380039780,1755499041296,-1000.0,0.00034656,30]
[380039781,1755499041321,-3295.16410865,0.00034656,30]
[380039782,1755499041346,-149607.78458064,0.00034656,30]
[380039783,1755499041371,-1539.26790008,0.00034656,30]
[380039784,1755499041394,-3765.56797683,0.00034656,60]
[380039785,1755499041420,-50000.0,0.00034656,30]
[380039786,1755499041445,-50000.0,0.00034656,31]
[380039787,1755499041472,-50000.0,0.00034656,32]
[380039788,1755499041497,-50000.0,0.00034656,33]
[380039789,1755499041522,-50000.0,0.00034656,34]
[380039790,1755499041547,-50000.0,0.00034656,35]
[380039791,1755499041573,-50000.0,0.00034656,36]
[380039792,1755499041599,-50000.0,0.00034656,37]
[380039793,1755499041625,-50000.0,0.00034656,38]
[380039794,1755499041650,-50000.0,0.00034656,39]
[380039795,1755499041674,-3176.35123265,0.00034656,120]
[380039796,1755499041698,-14769.09175129,0.00034656,90]
[380039797,1755499041722,-4194.65602725,0.00034656,60]
[380039798,1755499041746,-10000.0,0.00034656,60]
[380039799,1755499041770,-2343.25479648,0.00034656,30]
[380039800,1755499041796,-12580.01188172,0.00034656,120]
[380039801,1755499041820,-7579.85573253,0.00034656,120]
[380039802,1755499041845,-4600.0,0.00034656,120]
[380039803,1755499041869,-4779.76782731,0.00034656,120]
[380039804,1755499041895,-8804.04424583,0.00034656,120]
[380039805,1755499041920,-500.0,0.00034656,120]
[380039806,1755499041946,-436.5622,0.00034656,120]
[380039807,1755499041970,-1000.0,0.00034656,60]
[380039808,1755499041994,-1000.0,0.00034656,30]
[380039809,1755499042019,-1000.0,0.00034656,60]
[380039810,1755499042047,-1000.0,0.00034656,30]
[380039811,1755499042071,-1000.0,0.00034656,60]
[380039812,1755499042095,-1000.0,0.00034656,120]
[380039813,1755499042120,-1000.0,0.00034656,60]
[380039814,1755499042145,-1000.0,0.00034656,30]
[380039815,1755499042169,-1000.0,0.00034656,60]
[380039816,1755499042199,-1000.0,0.00034656,60]
[380039817,1755499042224,-824.2916356,0.00034656,60]
[380039818,1755499042248,-1000.0,0.00034656,60]
[380039819,1755499042271,-1000.0,0.00034656,60]
[380039820,1755499042295,-1000.0,0.00034656,30]
[380039821,1755499042319,-1000.0,0.00034656,30]
[380039822,1755499042344,-1000.0,0.00034656,30]
[380039823,1755499042368,-1000.0,0.00034656,30]
[380039824,1755499042393,-1000.0,0.00034656,30]
[380039825,1755499042418,-1000.0,0.00034656,30]
[380039826,1755499042442,-1000.0,0.00034656,30]
[380039827,1755499042467,-1000.0,0.00034656,30]
[380039828,1755499042490,-1000.0,0.00034656,30]
[380039829,1755499042516,-1000.0,0.00034656,30]
[380039830,1755499042540,-1000.0,0.00034656,30]
[380039831,1755499042566,-1000.0,0.00034656,30]
[380039832,1755499042592,-1000.0,0.00034656,30]
[380039833,1755499042617,-1000.0,0.00034656,30]
[380039834,1755499042641,-1000.0,0.00034656,30]
[380039835,1755499042666,-865.73801545,0.00034656,30]
[380039836,1755499042691,-1000.0,0.00034656,30]
[380039837,1755499042715,-1000.0,0.00034656,30]
[380039838,1755499042740,-1000.0,0.00034656,30]
[380039839,1755499042764,-349.84624175,0.00034656,30]
[380039840,1755499042789,-1000.0,0.00034656,60]
[380039841,1755499042813,-868.15583927,0.00034656,30]
[380039842,1755499042837,-1000.0,0.00034656,60]
[380039843,1755499042862,-1000.0,0.00034656,30]
[380039844,1755499042887,-1000.0,0.00034656,60]
[380039845,1755499042911,-1000.0,0.00034656,30]
[380039846,1755499042937,-1000.0,0.00034656,30]
[380039847,1755499042962,-1000.0,0.00034656,60]
[380039848,1755499042986,-1000.0,0.00034656,30]
[380039849,1755499043011,-1000.0,0.00034656,60]
[380039850,1755499043037,-1000.0,0.00034656,30]
[380039851,1755499043061,-1000.0,0.00034656,30]
[380039852,1755499043088,-1000.0,0.00034656,30]
[380039853,1755499043114,-1000.0,0.00034656,30]
[380039854,1755499043139,-1084.53,0.00034656,30]
[380039855,1755499043163,-1666.37998803,0.00034656,120]
[380039856,1755499043188,-525.13046988,0.00034656,30]
[380039857,1755499043211,-392.469573,0.00034656,30]
[380039858,1755499043235,-3578.72370278,0.00034656,30]
[380039859,1755499043260,-900.27740233,0.00034656,30]
[380039860,1755499043283,-1000.0,0.00034656,30]
[380039861,1755499043307,-718.17530467,0.00034656,120]
[380039862,1755499043331,-472.33634086,0.00034656,120]
[380039863,1755499043354,-759.70220585,0.00034656,30]
[380039864,1755499043378,-265.87934646,0.00034656,120]
[380039865,1755499043402,-376.23812677,0.00034656,30]
[380039866,1755499043427,-2569.22064485,0.00034656,120]
[380039867,1755499043453,-450.8395415,0.00034656,120]
[380039868,1755499043478,-638.84782719,0.00034656,120]
[380039869,1755499043502,-881.82523827,0.00034656,30]
[380039870,1755499043526,-890.25926026,0.00034656,30]
[380039871,1755499043550,-235.92124037,0.00034656,120]
[380039872,1755499043574,-751.6036008,0.00034656,30]
[380039873,1755499043599,-1565.74571681,0.00034656,90]
[380039874,1755499043623,-1087.3141851,0.00034656,120]
[380039875,1755499043647,-508.10307462,0.00034656,120]
[380039876,1755499043672,-3210.27626692,0.00034656,120]
[380039877,1755499043697,-958.93427611,0.00034656,30]
[380039878,1755499043720,-1078.22693259,0.00034656,120]
[380039879,1755499043744,-521.60003358,0.00034656,120]
[380039880,1755499043767,-214.62935039,0.00034656,30]
[380039881,1755499043790,-990.66460761,0.00034656,30]
[380039882,1755499043814,-459.938127,0.00034656,120]
[380039883,1755499043839,-5759.62047165,0.00034656,120]
[380039884,1755499043862,-3753.38627388,0.00034656,120]
[380039885,1755499043886,-1794.95554443,0.00034656,60]
[380039886,1755499043910,-184.90044554,0.00034656,120]
[380039887,1755499043934,-458.08071916,0.00034656,120]
[380039888,1755499043958,-554.82313195,0.00034656,120]
[380039889,1755499044255,-1042.94973255,0.00034656,30]
[380039890,1755499044286,-362.08444004,0.00034656,30]
[380039891,1755499044310,-479.40758611,0.00034656,120]
[380039892,1755499044333,-734.34360434,0.00034656,120]
[380039893,1755499044358,-423.28933498,0.00034656,120]
[380039894,1755499044382,-841.4218995,0.00034656,30]
[380039895,1755499044405,-417.45505604,0.00034656,120]
[380039896,1755499044428,-2913.06933837,0.00034656,120]
[380039897,1755499044451,-1042.78059847,0.00034656,30]
[380039898,1755499044475,-36937.85345321,0.00034656,30]
[380039899,1755499044498,-3003.40173264,0.00034656,30]
[380039900,1755499044523,-16354.47837193,0.00034656,120]
[380039901,1755499044548,-5100.0,0.00034656,37]
[380039902,1755499044571,-256.0,0.00034656,120]